{"text_format":"1","workbook":"xlsx","n_sheets":2,"sheets":["DataBase","resultaat"],"not_rendered":{"charts":0,"images":0,"macros":1,"external_links":0,"defined_names":4,"comments":0,"pivot_tables":0},"unopened":[],"bounds":{"document_bytes":16777216,"sheet_cells":100000,"rows_first":2000,"rows_last":500,"rows_between":2000,"halvings":0,"cell_chars":16384,"cell_head_chars":4096},"cells_cut":0,"cells_raw":0,"read":"whole","date_system":"1900"}

{"sheet":"DataBase","index":0,"n_rows":3,"n_cols":27,"rows_kept":3,"cut":false,"hidden":true,"merged":[[2,1,2,4]]}
[null,null,null,null,null,null,null,null,null,null,null,null,null,null,null,null,null,null,null,null,null,null,null,null,null,null,"Excel files in the path C:\\Users\\Jean-Paul\\Downloads\\Laura\\"]
[]
["Week","PRENOM - VOORNAAM /                      NOM / NAAM",null,null,null,"Hrs  Uren","N   150% ","Hrs  Uren","N   150% ","Hrs  Uren","N   150% ","Hrs  Uren","N   150% ","Hrs  Uren","N   150%","Hrs  Uren","N   150% 200%","Hrs  Uren","N   150% 200%","Datum"]

{"sheet":"resultaat","index":1,"n_rows":18,"n_cols":25,"rows_kept":18,"cut":false,"hidden":false,"merged":[[3,0,3,3],[4,0,4,3],[5,0,5,3],[6,0,6,3],[10,0,10,3],[11,0,11,3],[12,0,12,3],[7,0,7,3],[8,0,8,3],[9,0,9,3],[16,0,16,3],[17,0,17,3],[13,0,13,3],[14,0,14,3],[15,0,15,3]]}
[null,null,null,null,null,null,null,null,null,null,null,null,null,null,null,null,null,null,null,null,null,null,null,null,"Excel files in the path C:\\Users\\Jean-Paul\\Downloads\\Laura\\"]
["week","Jaar",null,null,null,null,null,null,null,null,null,null,null,null,null,null,null,null,null,null,null,null,null,null,"Map1.xlsx"]
[48,2017,null,null,{"$f":"WeekdagEerste(B3,A3)","v":"2017-11-27"},{"$f":"E3","v":"2017-11-27"},{"$f":"F3+1","v":"2017-11-28"},{"$f":"F3+1","v":"2017-11-28"},{"$f":"H3+1","v":"2017-11-29"},{"$f":"H3+1","v":"2017-11-29"},{"$f":"J3+1","v":"2017-11-30"},{"$f":"J3+1","v":"2017-11-30"},{"$f":"L3+1","v":"2017-12-01"},{"$f":"L3+1","v":"2017-12-01"},{"$f":"N3+1","v":"2017-12-02"},{"$f":"N3+1","v":"2017-12-02"},{"$f":"P3+1","v":"2017-12-03"},{"$f":"P3+1","v":"2017-12-03"},null,null,null,null,null,null,"Map2.xlsx"]
["PRENOM - VOORNAAM /                      NOM / NAAM",null,null,null,"Hrs  Uren","N   150% ","Hrs  Uren","N   150% ","Hrs  Uren","N   150% ","Hrs  Uren","N   150% ","Hrs  Uren","N   150%","Hrs  Uren","N   150% 200%","Hrs  Uren","N   150% 200%",null,null,null,null,null,null,"Map3.xlsx"]
["werknemer 1",null,null,null,{"$f":"IFERROR(INDEX(MyDatabase,MATCH($A$3&$A5,DataDataBaseWeek&DataDataBaseNaam,0),COLUMN()+1),\"\")","v":""},{"$f":"IFERROR(INDEX(MyDatabase,MATCH($A$3&$A5,DataDataBaseWeek&DataDataBaseNaam,0),COLUMN()+1),\"\")","v":""},{"$f":"IFERROR(INDEX(MyDatabase,MATCH($A$3&$A5,DataDataBaseWeek&DataDataBaseNaam,0),COLUMN()+1),\"\")","v":""},{"$f":"IFERROR(INDEX(MyDatabase,MATCH($A$3&$A5,DataDataBaseWeek&DataDataBaseNaam,0),COLUMN()+1),\"\")","v":""},{"$f":"IFERROR(INDEX(MyDatabase,MATCH($A$3&$A5,DataDataBaseWeek&DataDataBaseNaam,0),COLUMN()+1),\"\")","v":""},{"$f":"IFERROR(INDEX(MyDatabase,MATCH($A$3&$A5,DataDataBaseWeek&DataDataBaseNaam,0),COLUMN()+1),\"\")","v":""},{"$f":"IFERROR(INDEX(MyDatabase,MATCH($A$3&$A5,DataDataBaseWeek&DataDataBaseNaam,0),COLUMN()+1),\"\")","v":""},{"$f":"IFERROR(INDEX(MyDatabase,MATCH($A$3&$A5,DataDataBaseWeek&DataDataBaseNaam,0),COLUMN()+1),\"\")","v":""},{"$f":"IFERROR(INDEX(MyDatabase,MATCH($A$3&$A5,DataDataBaseWeek&DataDataBaseNaam,0),COLUMN()+1),\"\")","v":""},{"$f":"IFERROR(INDEX(MyDatabase,MATCH($A$3&$A5,DataDataBaseWeek&DataDataBaseNaam,0),COLUMN()+1),\"\")","v":""},{"$f":"IFERROR(INDEX(MyDatabase,MATCH($A$3&$A5,DataDataBaseWeek&DataDataBaseNaam,0),COLUMN()+1),\"\")","v":""},{"$f":"IFERROR(INDEX(MyDatabase,MATCH($A$3&$A5,DataDataBaseWeek&DataDataBaseNaam,0),COLUMN()+1),\"\")","v":""},{"$f":"IFERROR(INDEX(MyDatabase,MATCH($A$3&$A5,DataDataBaseWeek&DataDataBaseNaam,0),COLUMN()+1),\"\")","v":""},{"$f":"IFERROR(INDEX(MyDatabase,MATCH($A$3&$A5,DataDataBaseWeek&DataDataBaseNaam,0),COLUMN()+1),\"\")","v":""}]
["werknemer 2",null,null,null,{"$f":"IFERROR(INDEX(MyDatabase,MATCH($A$3&$A6,DataDataBaseWeek&DataDataBaseNaam,0),COLUMN()+1),\"\")","v":""},{"$f":"IFERROR(INDEX(MyDatabase,MATCH($A$3&$A6,DataDataBaseWeek&DataDataBaseNaam,0),COLUMN()+1),\"\")","v":""},{"$f":"IFERROR(INDEX(MyDatabase,MATCH($A$3&$A6,DataDataBaseWeek&DataDataBaseNaam,0),COLUMN()+1),\"\")","v":""},{"$f":"IFERROR(INDEX(MyDatabase,MATCH($A$3&$A6,DataDataBaseWeek&DataDataBaseNaam,0),COLUMN()+1),\"\")","v":""},{"$f":"IFERROR(INDEX(MyDatabase,MATCH($A$3&$A6,DataDataBaseWeek&DataDataBaseNaam,0),COLUMN()+1),\"\")","v":""},{"$f":"IFERROR(INDEX(MyDatabase,MATCH($A$3&$A6,DataDataBaseWeek&DataDataBaseNaam,0),COLUMN()+1),\"\")","v":""},{"$f":"IFERROR(INDEX(MyDatabase,MATCH($A$3&$A6,DataDataBaseWeek&DataDataBaseNaam,0),COLUMN()+1),\"\")","v":""},{"$f":"IFERROR(INDEX(MyDatabase,MATCH($A$3&$A6,DataDataBaseWeek&DataDataBaseNaam,0),COLUMN()+1),\"\")","v":""},{"$f":"IFERROR(INDEX(MyDatabase,MATCH($A$3&$A6,DataDataBaseWeek&DataDataBaseNaam,0),COLUMN()+1),\"\")","v":""},{"$f":"IFERROR(INDEX(MyDatabase,MATCH($A$3&$A6,DataDataBaseWeek&DataDataBaseNaam,0),COLUMN()+1),\"\")","v":""},{"$f":"IFERROR(INDEX(MyDatabase,MATCH($A$3&$A6,DataDataBaseWeek&DataDataBaseNaam,0),COLUMN()+1),\"\")","v":""},{"$f":"IFERROR(INDEX(MyDatabase,MATCH($A$3&$A6,DataDataBaseWeek&DataDataBaseNaam,0),COLUMN()+1),\"\")","v":""},{"$f":"IFERROR(INDEX(MyDatabase,MATCH($A$3&$A6,DataDataBaseWeek&DataDataBaseNaam,0),COLUMN()+1),\"\")","v":""},{"$f":"IFERROR(INDEX(MyDatabase,MATCH($A$3&$A6,DataDataBaseWeek&DataDataBaseNaam,0),COLUMN()+1),\"\")","v":""}]
["werknemer 3",null,null,null,{"$f":"IFERROR(INDEX(MyDatabase,MATCH($A$3&$A7,DataDataBaseWeek&DataDataBaseNaam,0),COLUMN()+1),\"\")","v":""},{"$f":"IFERROR(INDEX(MyDatabase,MATCH($A$3&$A7,DataDataBaseWeek&DataDataBaseNaam,0),COLUMN()+1),\"\")","v":""},{"$f":"IFERROR(INDEX(MyDatabase,MATCH($A$3&$A7,DataDataBaseWeek&DataDataBaseNaam,0),COLUMN()+1),\"\")","v":""},{"$f":"IFERROR(INDEX(MyDatabase,MATCH($A$3&$A7,DataDataBaseWeek&DataDataBaseNaam,0),COLUMN()+1),\"\")","v":""},{"$f":"IFERROR(INDEX(MyDatabase,MATCH($A$3&$A7,DataDataBaseWeek&DataDataBaseNaam,0),COLUMN()+1),\"\")","v":""},{"$f":"IFERROR(INDEX(MyDatabase,MATCH($A$3&$A7,DataDataBaseWeek&DataDataBaseNaam,0),COLUMN()+1),\"\")","v":""},{"$f":"IFERROR(INDEX(MyDatabase,MATCH($A$3&$A7,DataDataBaseWeek&DataDataBaseNaam,0),COLUMN()+1),\"\")","v":""},{"$f":"IFERROR(INDEX(MyDatabase,MATCH($A$3&$A7,DataDataBaseWeek&DataDataBaseNaam,0),COLUMN()+1),\"\")","v":""},{"$f":"IFERROR(INDEX(MyDatabase,MATCH($A$3&$A7,DataDataBaseWeek&DataDataBaseNaam,0),COLUMN()+1),\"\")","v":""},{"$f":"IFERROR(INDEX(MyDatabase,MATCH($A$3&$A7,DataDataBaseWeek&DataDataBaseNaam,0),COLUMN()+1),\"\")","v":""},{"$f":"IFERROR(INDEX(MyDatabase,MATCH($A$3&$A7,DataDataBaseWeek&DataDataBaseNaam,0),COLUMN()+1),\"\")","v":""},{"$f":"IFERROR(INDEX(MyDatabase,MATCH($A$3&$A7,DataDataBaseWeek&DataDataBaseNaam,0),COLUMN()+1),\"\")","v":""},{"$f":"IFERROR(INDEX(MyDatabase,MATCH($A$3&$A7,DataDataBaseWeek&DataDataBaseNaam,0),COLUMN()+1),\"\")","v":""},{"$f":"IFERROR(INDEX(MyDatabase,MATCH($A$3&$A7,DataDataBaseWeek&DataDataBaseNaam,0),COLUMN()+1),\"\")","v":""}]
["werknemer 4",null,null,null,{"$f":"IFERROR(INDEX(MyDatabase,MATCH($A$3&$A8,DataDataBaseWeek&DataDataBaseNaam,0),COLUMN()+1),\"\")","v":""},{"$f":"IFERROR(INDEX(MyDatabase,MATCH($A$3&$A8,DataDataBaseWeek&DataDataBaseNaam,0),COLUMN()+1),\"\")","v":""},{"$f":"IFERROR(INDEX(MyDatabase,MATCH($A$3&$A8,DataDataBaseWeek&DataDataBaseNaam,0),COLUMN()+1),\"\")","v":""},{"$f":"IFERROR(INDEX(MyDatabase,MATCH($A$3&$A8,DataDataBaseWeek&DataDataBaseNaam,0),COLUMN()+1),\"\")","v":""},{"$f":"IFERROR(INDEX(MyDatabase,MATCH($A$3&$A8,DataDataBaseWeek&DataDataBaseNaam,0),COLUMN()+1),\"\")","v":""},{"$f":"IFERROR(INDEX(MyDatabase,MATCH($A$3&$A8,DataDataBaseWeek&DataDataBaseNaam,0),COLUMN()+1),\"\")","v":""},{"$f":"IFERROR(INDEX(MyDatabase,MATCH($A$3&$A8,DataDataBaseWeek&DataDataBaseNaam,0),COLUMN()+1),\"\")","v":""},{"$f":"IFERROR(INDEX(MyDatabase,MATCH($A$3&$A8,DataDataBaseWeek&DataDataBaseNaam,0),COLUMN()+1),\"\")","v":""},{"$f":"IFERROR(INDEX(MyDatabase,MATCH($A$3&$A8,DataDataBaseWeek&DataDataBaseNaam,0),COLUMN()+1),\"\")","v":""},{"$f":"IFERROR(INDEX(MyDatabase,MATCH($A$3&$A8,DataDataBaseWeek&DataDataBaseNaam,0),COLUMN()+1),\"\")","v":""},{"$f":"IFERROR(INDEX(MyDatabase,MATCH($A$3&$A8,DataDataBaseWeek&DataDataBaseNaam,0),COLUMN()+1),\"\")","v":""},{"$f":"IFERROR(INDEX(MyDatabase,MATCH($A$3&$A8,DataDataBaseWeek&DataDataBaseNaam,0),COLUMN()+1),\"\")","v":""},{"$f":"IFERROR(INDEX(MyDatabase,MATCH($A$3&$A8,DataDataBaseWeek&DataDataBaseNaam,0),COLUMN()+1),\"\")","v":""},{"$f":"IFERROR(INDEX(MyDatabase,MATCH($A$3&$A8,DataDataBaseWeek&DataDataBaseNaam,0),COLUMN()+1),\"\")","v":""}]
["werknemer 5",null,null,null,{"$f":"IFERROR(INDEX(MyDatabase,MATCH($A$3&$A9,DataDataBaseWeek&DataDataBaseNaam,0),COLUMN()+1),\"\")","v":""},{"$f":"IFERROR(INDEX(MyDatabase,MATCH($A$3&$A9,DataDataBaseWeek&DataDataBaseNaam,0),COLUMN()+1),\"\")","v":""},{"$f":"IFERROR(INDEX(MyDatabase,MATCH($A$3&$A9,DataDataBaseWeek&DataDataBaseNaam,0),COLUMN()+1),\"\")","v":""},{"$f":"IFERROR(INDEX(MyDatabase,MATCH($A$3&$A9,DataDataBaseWeek&DataDataBaseNaam,0),COLUMN()+1),\"\")","v":""},{"$f":"IFERROR(INDEX(MyDatabase,MATCH($A$3&$A9,DataDataBaseWeek&DataDataBaseNaam,0),COLUMN()+1),\"\")","v":""},{"$f":"IFERROR(INDEX(MyDatabase,MATCH($A$3&$A9,DataDataBaseWeek&DataDataBaseNaam,0),COLUMN()+1),\"\")","v":""},{"$f":"IFERROR(INDEX(MyDatabase,MATCH($A$3&$A9,DataDataBaseWeek&DataDataBaseNaam,0),COLUMN()+1),\"\")","v":""},{"$f":"IFERROR(INDEX(MyDatabase,MATCH($A$3&$A9,DataDataBaseWeek&DataDataBaseNaam,0),COLUMN()+1),\"\")","v":""},{"$f":"IFERROR(INDEX(MyDatabase,MATCH($A$3&$A9,DataDataBaseWeek&DataDataBaseNaam,0),COLUMN()+1),\"\")","v":""},{"$f":"IFERROR(INDEX(MyDatabase,MATCH($A$3&$A9,DataDataBaseWeek&DataDataBaseNaam,0),COLUMN()+1),\"\")","v":""},{"$f":"IFERROR(INDEX(MyDatabase,MATCH($A$3&$A9,DataDataBaseWeek&DataDataBaseNaam,0),COLUMN()+1),\"\")","v":""},{"$f":"IFERROR(INDEX(MyDatabase,MATCH($A$3&$A9,DataDataBaseWeek&DataDataBaseNaam,0),COLUMN()+1),\"\")","v":""},{"$f":"IFERROR(INDEX(MyDatabase,MATCH($A$3&$A9,DataDataBaseWeek&DataDataBaseNaam,0),COLUMN()+1),\"\")","v":""},{"$f":"IFERROR(INDEX(MyDatabase,MATCH($A$3&$A9,DataDataBaseWeek&DataDataBaseNaam,0),COLUMN()+1),\"\")","v":""}]
["werknemer 6",null,null,null,{"$f":"IFERROR(INDEX(MyDatabase,MATCH($A$3&$A10,DataDataBaseWeek&DataDataBaseNaam,0),COLUMN()+1),\"\")","v":""},{"$f":"IFERROR(INDEX(MyDatabase,MATCH($A$3&$A10,DataDataBaseWeek&DataDataBaseNaam,0),COLUMN()+1),\"\")","v":""},{"$f":"IFERROR(INDEX(MyDatabase,MATCH($A$3&$A10,DataDataBaseWeek&DataDataBaseNaam,0),COLUMN()+1),\"\")","v":""},{"$f":"IFERROR(INDEX(MyDatabase,MATCH($A$3&$A10,DataDataBaseWeek&DataDataBaseNaam,0),COLUMN()+1),\"\")","v":""},{"$f":"IFERROR(INDEX(MyDatabase,MATCH($A$3&$A10,DataDataBaseWeek&DataDataBaseNaam,0),COLUMN()+1),\"\")","v":""},{"$f":"IFERROR(INDEX(MyDatabase,MATCH($A$3&$A10,DataDataBaseWeek&DataDataBaseNaam,0),COLUMN()+1),\"\")","v":""},{"$f":"IFERROR(INDEX(MyDatabase,MATCH($A$3&$A10,DataDataBaseWeek&DataDataBaseNaam,0),COLUMN()+1),\"\")","v":""},{"$f":"IFERROR(INDEX(MyDatabase,MATCH($A$3&$A10,DataDataBaseWeek&DataDataBaseNaam,0),COLUMN()+1),\"\")","v":""},{"$f":"IFERROR(INDEX(MyDatabase,MATCH($A$3&$A10,DataDataBaseWeek&DataDataBaseNaam,0),COLUMN()+1),\"\")","v":""},{"$f":"IFERROR(INDEX(MyDatabase,MATCH($A$3&$A10,DataDataBaseWeek&DataDataBaseNaam,0),COLUMN()+1),\"\")","v":""},{"$f":"IFERROR(INDEX(MyDatabase,MATCH($A$3&$A10,DataDataBaseWeek&DataDataBaseNaam,0),COLUMN()+1),\"\")","v":""},{"$f":"IFERROR(INDEX(MyDatabase,MATCH($A$3&$A10,DataDataBaseWeek&DataDataBaseNaam,0),COLUMN()+1),\"\")","v":""},{"$f":"IFERROR(INDEX(MyDatabase,MATCH($A$3&$A10,DataDataBaseWeek&DataDataBaseNaam,0),COLUMN()+1),\"\")","v":""},{"$f":"IFERROR(INDEX(MyDatabase,MATCH($A$3&$A10,DataDataBaseWeek&DataDataBaseNaam,0),COLUMN()+1),\"\")","v":""}]
[null,null,null,null,{"$f":"IFERROR(INDEX(MyDatabase,MATCH($A$3&$A11,DataDataBaseWeek&DataDataBaseNaam,0),COLUMN()+1),\"\")","v":""},{"$f":"IFERROR(INDEX(MyDatabase,MATCH($A$3&$A11,DataDataBaseWeek&DataDataBaseNaam,0),COLUMN()+1),\"\")","v":""},{"$f":"IFERROR(INDEX(MyDatabase,MATCH($A$3&$A11,DataDataBaseWeek&DataDataBaseNaam,0),COLUMN()+1),\"\")","v":""},{"$f":"IFERROR(INDEX(MyDatabase,MATCH($A$3&$A11,DataDataBaseWeek&DataDataBaseNaam,0),COLUMN()+1),\"\")","v":""},{"$f":"IFERROR(INDEX(MyDatabase,MATCH($A$3&$A11,DataDataBaseWeek&DataDataBaseNaam,0),COLUMN()+1),\"\")","v":""},{"$f":"IFERROR(INDEX(MyDatabase,MATCH($A$3&$A11,DataDataBaseWeek&DataDataBaseNaam,0),COLUMN()+1),\"\")","v":""},{"$f":"IFERROR(INDEX(MyDatabase,MATCH($A$3&$A11,DataDataBaseWeek&DataDataBaseNaam,0),COLUMN()+1),\"\")","v":""},{"$f":"IFERROR(INDEX(MyDatabase,MATCH($A$3&$A11,DataDataBaseWeek&DataDataBaseNaam,0),COLUMN()+1),\"\")","v":""},{"$f":"IFERROR(INDEX(MyDatabase,MATCH($A$3&$A11,DataDataBaseWeek&DataDataBaseNaam,0),COLUMN()+1),\"\")","v":""},{"$f":"IFERROR(INDEX(MyDatabase,MATCH($A$3&$A11,DataDataBaseWeek&DataDataBaseNaam,0),COLUMN()+1),\"\")","v":""},{"$f":"IFERROR(INDEX(MyDatabase,MATCH($A$3&$A11,DataDataBaseWeek&DataDataBaseNaam,0),COLUMN()+1),\"\")","v":""},{"$f":"IFERROR(INDEX(MyDatabase,MATCH($A$3&$A11,DataDataBaseWeek&DataDataBaseNaam,0),COLUMN()+1),\"\")","v":""},{"$f":"IFERROR(INDEX(MyDatabase,MATCH($A$3&$A11,DataDataBaseWeek&DataDataBaseNaam,0),COLUMN()+1),\"\")","v":""},{"$f":"IFERROR(INDEX(MyDatabase,MATCH($A$3&$A11,DataDataBaseWeek&DataDataBaseNaam,0),COLUMN()+1),\"\")","v":""}]
[null,null,null,null,{"$f":"IFERROR(INDEX(MyDatabase,MATCH($A$3&$A12,DataDataBaseWeek&DataDataBaseNaam,0),COLUMN()+1),\"\")","v":""},{"$f":"IFERROR(INDEX(MyDatabase,MATCH($A$3&$A12,DataDataBaseWeek&DataDataBaseNaam,0),COLUMN()+1),\"\")","v":""},{"$f":"IFERROR(INDEX(MyDatabase,MATCH($A$3&$A12,DataDataBaseWeek&DataDataBaseNaam,0),COLUMN()+1),\"\")","v":""},{"$f":"IFERROR(INDEX(MyDatabase,MATCH($A$3&$A12,DataDataBaseWeek&DataDataBaseNaam,0),COLUMN()+1),\"\")","v":""},{"$f":"IFERROR(INDEX(MyDatabase,MATCH($A$3&$A12,DataDataBaseWeek&DataDataBaseNaam,0),COLUMN()+1),\"\")","v":""},{"$f":"IFERROR(INDEX(MyDatabase,MATCH($A$3&$A12,DataDataBaseWeek&DataDataBaseNaam,0),COLUMN()+1),\"\")","v":""},{"$f":"IFERROR(INDEX(MyDatabase,MATCH($A$3&$A12,DataDataBaseWeek&DataDataBaseNaam,0),COLUMN()+1),\"\")","v":""},{"$f":"IFERROR(INDEX(MyDatabase,MATCH($A$3&$A12,DataDataBaseWeek&DataDataBaseNaam,0),COLUMN()+1),\"\")","v":""},{"$f":"IFERROR(INDEX(MyDatabase,MATCH($A$3&$A12,DataDataBaseWeek&DataDataBaseNaam,0),COLUMN()+1),\"\")","v":""},{"$f":"IFERROR(INDEX(MyDatabase,MATCH($A$3&$A12,DataDataBaseWeek&DataDataBaseNaam,0),COLUMN()+1),\"\")","v":""},{"$f":"IFERROR(INDEX(MyDatabase,MATCH($A$3&$A12,DataDataBaseWeek&DataDataBaseNaam,0),COLUMN()+1),\"\")","v":""},{"$f":"IFERROR(INDEX(MyDatabase,MATCH($A$3&$A12,DataDataBaseWeek&DataDataBaseNaam,0),COLUMN()+1),\"\")","v":""},{"$f":"IFERROR(INDEX(MyDatabase,MATCH($A$3&$A12,DataDataBaseWeek&DataDataBaseNaam,0),COLUMN()+1),\"\")","v":""},{"$f":"IFERROR(INDEX(MyDatabase,MATCH($A$3&$A12,DataDataBaseWeek&DataDataBaseNaam,0),COLUMN()+1),\"\")","v":""}]
[null,null,null,null,{"$f":"IFERROR(INDEX(MyDatabase,MATCH($A$3&$A13,DataDataBaseWeek&DataDataBaseNaam,0),COLUMN()+1),\"\")","v":""},{"$f":"IFERROR(INDEX(MyDatabase,MATCH($A$3&$A13,DataDataBaseWeek&DataDataBaseNaam,0),COLUMN()+1),\"\")","v":""},{"$f":"IFERROR(INDEX(MyDatabase,MATCH($A$3&$A13,DataDataBaseWeek&DataDataBaseNaam,0),COLUMN()+1),\"\")","v":""},{"$f":"IFERROR(INDEX(MyDatabase,MATCH($A$3&$A13,DataDataBaseWeek&DataDataBaseNaam,0),COLUMN()+1),\"\")","v":""},{"$f":"IFERROR(INDEX(MyDatabase,MATCH($A$3&$A13,DataDataBaseWeek&DataDataBaseNaam,0),COLUMN()+1),\"\")","v":""},{"$f":"IFERROR(INDEX(MyDatabase,MATCH($A$3&$A13,DataDataBaseWeek&DataDataBaseNaam,0),COLUMN()+1),\"\")","v":""},{"$f":"IFERROR(INDEX(MyDatabase,MATCH($A$3&$A13,DataDataBaseWeek&DataDataBaseNaam,0),COLUMN()+1),\"\")","v":""},{"$f":"IFERROR(INDEX(MyDatabase,MATCH($A$3&$A13,DataDataBaseWeek&DataDataBaseNaam,0),COLUMN()+1),\"\")","v":""},{"$f":"IFERROR(INDEX(MyDatabase,MATCH($A$3&$A13,DataDataBaseWeek&DataDataBaseNaam,0),COLUMN()+1),\"\")","v":""},{"$f":"IFERROR(INDEX(MyDatabase,MATCH($A$3&$A13,DataDataBaseWeek&DataDataBaseNaam,0),COLUMN()+1),\"\")","v":""},{"$f":"IFERROR(INDEX(MyDatabase,MATCH($A$3&$A13,DataDataBaseWeek&DataDataBaseNaam,0),COLUMN()+1),\"\")","v":""},{"$f":"IFERROR(INDEX(MyDatabase,MATCH($A$3&$A13,DataDataBaseWeek&DataDataBaseNaam,0),COLUMN()+1),\"\")","v":""},{"$f":"IFERROR(INDEX(MyDatabase,MATCH($A$3&$A13,DataDataBaseWeek&DataDataBaseNaam,0),COLUMN()+1),\"\")","v":""},{"$f":"IFERROR(INDEX(MyDatabase,MATCH($A$3&$A13,DataDataBaseWeek&DataDataBaseNaam,0),COLUMN()+1),\"\")","v":""}]
[null,null,null,null,{"$f":"IFERROR(INDEX(MyDatabase,MATCH($A$3&$A14,DataDataBaseWeek&DataDataBaseNaam,0),COLUMN()+1),\"\")","v":""},{"$f":"IFERROR(INDEX(MyDatabase,MATCH($A$3&$A14,DataDataBaseWeek&DataDataBaseNaam,0),COLUMN()+1),\"\")","v":""},{"$f":"IFERROR(INDEX(MyDatabase,MATCH($A$3&$A14,DataDataBaseWeek&DataDataBaseNaam,0),COLUMN()+1),\"\")","v":""},{"$f":"IFERROR(INDEX(MyDatabase,MATCH($A$3&$A14,DataDataBaseWeek&DataDataBaseNaam,0),COLUMN()+1),\"\")","v":""},{"$f":"IFERROR(INDEX(MyDatabase,MATCH($A$3&$A14,DataDataBaseWeek&DataDataBaseNaam,0),COLUMN()+1),\"\")","v":""},{"$f":"IFERROR(INDEX(MyDatabase,MATCH($A$3&$A14,DataDataBaseWeek&DataDataBaseNaam,0),COLUMN()+1),\"\")","v":""},{"$f":"IFERROR(INDEX(MyDatabase,MATCH($A$3&$A14,DataDataBaseWeek&DataDataBaseNaam,0),COLUMN()+1),\"\")","v":""},{"$f":"IFERROR(INDEX(MyDatabase,MATCH($A$3&$A14,DataDataBaseWeek&DataDataBaseNaam,0),COLUMN()+1),\"\")","v":""},{"$f":"IFERROR(INDEX(MyDatabase,MATCH($A$3&$A14,DataDataBaseWeek&DataDataBaseNaam,0),COLUMN()+1),\"\")","v":""},{"$f":"IFERROR(INDEX(MyDatabase,MATCH($A$3&$A14,DataDataBaseWeek&DataDataBaseNaam,0),COLUMN()+1),\"\")","v":""},{"$f":"IFERROR(INDEX(MyDatabase,MATCH($A$3&$A14,DataDataBaseWeek&DataDataBaseNaam,0),COLUMN()+1),\"\")","v":""},{"$f":"IFERROR(INDEX(MyDatabase,MATCH($A$3&$A14,DataDataBaseWeek&DataDataBaseNaam,0),COLUMN()+1),\"\")","v":""},{"$f":"IFERROR(INDEX(MyDatabase,MATCH($A$3&$A14,DataDataBaseWeek&DataDataBaseNaam,0),COLUMN()+1),\"\")","v":""},{"$f":"IFERROR(INDEX(MyDatabase,MATCH($A$3&$A14,DataDataBaseWeek&DataDataBaseNaam,0),COLUMN()+1),\"\")","v":""}]
[null,null,null,null,{"$f":"IFERROR(INDEX(MyDatabase,MATCH($A$3&$A15,DataDataBaseWeek&DataDataBaseNaam,0),COLUMN()+1),\"\")","v":""},{"$f":"IFERROR(INDEX(MyDatabase,MATCH($A$3&$A15,DataDataBaseWeek&DataDataBaseNaam,0),COLUMN()+1),\"\")","v":""},{"$f":"IFERROR(INDEX(MyDatabase,MATCH($A$3&$A15,DataDataBaseWeek&DataDataBaseNaam,0),COLUMN()+1),\"\")","v":""},{"$f":"IFERROR(INDEX(MyDatabase,MATCH($A$3&$A15,DataDataBaseWeek&DataDataBaseNaam,0),COLUMN()+1),\"\")","v":""},{"$f":"IFERROR(INDEX(MyDatabase,MATCH($A$3&$A15,DataDataBaseWeek&DataDataBaseNaam,0),COLUMN()+1),\"\")","v":""},{"$f":"IFERROR(INDEX(MyDatabase,MATCH($A$3&$A15,DataDataBaseWeek&DataDataBaseNaam,0),COLUMN()+1),\"\")","v":""},{"$f":"IFERROR(INDEX(MyDatabase,MATCH($A$3&$A15,DataDataBaseWeek&DataDataBaseNaam,0),COLUMN()+1),\"\")","v":""},{"$f":"IFERROR(INDEX(MyDatabase,MATCH($A$3&$A15,DataDataBaseWeek&DataDataBaseNaam,0),COLUMN()+1),\"\")","v":""},{"$f":"IFERROR(INDEX(MyDatabase,MATCH($A$3&$A15,DataDataBaseWeek&DataDataBaseNaam,0),COLUMN()+1),\"\")","v":""},{"$f":"IFERROR(INDEX(MyDatabase,MATCH($A$3&$A15,DataDataBaseWeek&DataDataBaseNaam,0),COLUMN()+1),\"\")","v":""},{"$f":"IFERROR(INDEX(MyDatabase,MATCH($A$3&$A15,DataDataBaseWeek&DataDataBaseNaam,0),COLUMN()+1),\"\")","v":""},{"$f":"IFERROR(INDEX(MyDatabase,MATCH($A$3&$A15,DataDataBaseWeek&DataDataBaseNaam,0),COLUMN()+1),\"\")","v":""},{"$f":"IFERROR(INDEX(MyDatabase,MATCH($A$3&$A15,DataDataBaseWeek&DataDataBaseNaam,0),COLUMN()+1),\"\")","v":""},{"$f":"IFERROR(INDEX(MyDatabase,MATCH($A$3&$A15,DataDataBaseWeek&DataDataBaseNaam,0),COLUMN()+1),\"\")","v":""}]
[null,null,null,null,{"$f":"IFERROR(INDEX(MyDatabase,MATCH($A$3&$A16,DataDataBaseWeek&DataDataBaseNaam,0),COLUMN()+1),\"\")","v":""},{"$f":"IFERROR(INDEX(MyDatabase,MATCH($A$3&$A16,DataDataBaseWeek&DataDataBaseNaam,0),COLUMN()+1),\"\")","v":""},{"$f":"IFERROR(INDEX(MyDatabase,MATCH($A$3&$A16,DataDataBaseWeek&DataDataBaseNaam,0),COLUMN()+1),\"\")","v":""},{"$f":"IFERROR(INDEX(MyDatabase,MATCH($A$3&$A16,DataDataBaseWeek&DataDataBaseNaam,0),COLUMN()+1),\"\")","v":""},{"$f":"IFERROR(INDEX(MyDatabase,MATCH($A$3&$A16,DataDataBaseWeek&DataDataBaseNaam,0),COLUMN()+1),\"\")","v":""},{"$f":"IFERROR(INDEX(MyDatabase,MATCH($A$3&$A16,DataDataBaseWeek&DataDataBaseNaam,0),COLUMN()+1),\"\")","v":""},{"$f":"IFERROR(INDEX(MyDatabase,MATCH($A$3&$A16,DataDataBaseWeek&DataDataBaseNaam,0),COLUMN()+1),\"\")","v":""},{"$f":"IFERROR(INDEX(MyDatabase,MATCH($A$3&$A16,DataDataBaseWeek&DataDataBaseNaam,0),COLUMN()+1),\"\")","v":""},{"$f":"IFERROR(INDEX(MyDatabase,MATCH($A$3&$A16,DataDataBaseWeek&DataDataBaseNaam,0),COLUMN()+1),\"\")","v":""},{"$f":"IFERROR(INDEX(MyDatabase,MATCH($A$3&$A16,DataDataBaseWeek&DataDataBaseNaam,0),COLUMN()+1),\"\")","v":""},{"$f":"IFERROR(INDEX(MyDatabase,MATCH($A$3&$A16,DataDataBaseWeek&DataDataBaseNaam,0),COLUMN()+1),\"\")","v":""},{"$f":"IFERROR(INDEX(MyDatabase,MATCH($A$3&$A16,DataDataBaseWeek&DataDataBaseNaam,0),COLUMN()+1),\"\")","v":""},{"$f":"IFERROR(INDEX(MyDatabase,MATCH($A$3&$A16,DataDataBaseWeek&DataDataBaseNaam,0),COLUMN()+1),\"\")","v":""},{"$f":"IFERROR(INDEX(MyDatabase,MATCH($A$3&$A16,DataDataBaseWeek&DataDataBaseNaam,0),COLUMN()+1),\"\")","v":""}]
[null,null,null,null,{"$f":"IFERROR(INDEX(MyDatabase,MATCH($A$3&$A17,DataDataBaseWeek&DataDataBaseNaam,0),COLUMN()+1),\"\")","v":""},{"$f":"IFERROR(INDEX(MyDatabase,MATCH($A$3&$A17,DataDataBaseWeek&DataDataBaseNaam,0),COLUMN()+1),\"\")","v":""},{"$f":"IFERROR(INDEX(MyDatabase,MATCH($A$3&$A17,DataDataBaseWeek&DataDataBaseNaam,0),COLUMN()+1),\"\")","v":""},{"$f":"IFERROR(INDEX(MyDatabase,MATCH($A$3&$A17,DataDataBaseWeek&DataDataBaseNaam,0),COLUMN()+1),\"\")","v":""},{"$f":"IFERROR(INDEX(MyDatabase,MATCH($A$3&$A17,DataDataBaseWeek&DataDataBaseNaam,0),COLUMN()+1),\"\")","v":""},{"$f":"IFERROR(INDEX(MyDatabase,MATCH($A$3&$A17,DataDataBaseWeek&DataDataBaseNaam,0),COLUMN()+1),\"\")","v":""},{"$f":"IFERROR(INDEX(MyDatabase,MATCH($A$3&$A17,DataDataBaseWeek&DataDataBaseNaam,0),COLUMN()+1),\"\")","v":""},{"$f":"IFERROR(INDEX(MyDatabase,MATCH($A$3&$A17,DataDataBaseWeek&DataDataBaseNaam,0),COLUMN()+1),\"\")","v":""},{"$f":"IFERROR(INDEX(MyDatabase,MATCH($A$3&$A17,DataDataBaseWeek&DataDataBaseNaam,0),COLUMN()+1),\"\")","v":""},{"$f":"IFERROR(INDEX(MyDatabase,MATCH($A$3&$A17,DataDataBaseWeek&DataDataBaseNaam,0),COLUMN()+1),\"\")","v":""},{"$f":"IFERROR(INDEX(MyDatabase,MATCH($A$3&$A17,DataDataBaseWeek&DataDataBaseNaam,0),COLUMN()+1),\"\")","v":""},{"$f":"IFERROR(INDEX(MyDatabase,MATCH($A$3&$A17,DataDataBaseWeek&DataDataBaseNaam,0),COLUMN()+1),\"\")","v":""},{"$f":"IFERROR(INDEX(MyDatabase,MATCH($A$3&$A17,DataDataBaseWeek&DataDataBaseNaam,0),COLUMN()+1),\"\")","v":""},{"$f":"IFERROR(INDEX(MyDatabase,MATCH($A$3&$A17,DataDataBaseWeek&DataDataBaseNaam,0),COLUMN()+1),\"\")","v":""}]
[null,null,null,null,{"$f":"IFERROR(INDEX(MyDatabase,MATCH($A$3&$A18,DataDataBaseWeek&DataDataBaseNaam,0),COLUMN()+1),\"\")","v":""},{"$f":"IFERROR(INDEX(MyDatabase,MATCH($A$3&$A18,DataDataBaseWeek&DataDataBaseNaam,0),COLUMN()+1),\"\")","v":""},{"$f":"IFERROR(INDEX(MyDatabase,MATCH($A$3&$A18,DataDataBaseWeek&DataDataBaseNaam,0),COLUMN()+1),\"\")","v":""},{"$f":"IFERROR(INDEX(MyDatabase,MATCH($A$3&$A18,DataDataBaseWeek&DataDataBaseNaam,0),COLUMN()+1),\"\")","v":""},{"$f":"IFERROR(INDEX(MyDatabase,MATCH($A$3&$A18,DataDataBaseWeek&DataDataBaseNaam,0),COLUMN()+1),\"\")","v":""},{"$f":"IFERROR(INDEX(MyDatabase,MATCH($A$3&$A18,DataDataBaseWeek&DataDataBaseNaam,0),COLUMN()+1),\"\")","v":""},{"$f":"IFERROR(INDEX(MyDatabase,MATCH($A$3&$A18,DataDataBaseWeek&DataDataBaseNaam,0),COLUMN()+1),\"\")","v":""},{"$f":"IFERROR(INDEX(MyDatabase,MATCH($A$3&$A18,DataDataBaseWeek&DataDataBaseNaam,0),COLUMN()+1),\"\")","v":""},{"$f":"IFERROR(INDEX(MyDatabase,MATCH($A$3&$A18,DataDataBaseWeek&DataDataBaseNaam,0),COLUMN()+1),\"\")","v":""},{"$f":"IFERROR(INDEX(MyDatabase,MATCH($A$3&$A18,DataDataBaseWeek&DataDataBaseNaam,0),COLUMN()+1),\"\")","v":""},{"$f":"IFERROR(INDEX(MyDatabase,MATCH($A$3&$A18,DataDataBaseWeek&DataDataBaseNaam,0),COLUMN()+1),\"\")","v":""},{"$f":"IFERROR(INDEX(MyDatabase,MATCH($A$3&$A18,DataDataBaseWeek&DataDataBaseNaam,0),COLUMN()+1),\"\")","v":""},{"$f":"IFERROR(INDEX(MyDatabase,MATCH($A$3&$A18,DataDataBaseWeek&DataDataBaseNaam,0),COLUMN()+1),\"\")","v":""},{"$f":"IFERROR(INDEX(MyDatabase,MATCH($A$3&$A18,DataDataBaseWeek&DataDataBaseNaam,0),COLUMN()+1),\"\")","v":""}]